[Event "36th Indian-ch U13 Open 2023"]
[Site "Secunderabad"]
[Date "2023.12.08"]
[Round "9.7"]
[White "Shenvi, Mohit"]
[Black "Siddhanth Poonja"]
[Result "0-1"]
[ECO "B22"]
[WhiteElo "1940"]
[BlackElo "1806"]
[Annotator "COMBH"]
[PlyCount "76"]
[EventDate "2023.12.04"]
[EventType "swiss"]
[EventCountry "IND"]
[SourceTitle "playchess.com"]
[Source "ChessBase"]
[SourceQuality "1"]
[TimeControl "5400+30"]

1. e4 {[%emt 0:00:02]} c5 {[%emt 0:00:25]} 2. c3 {[%emt 0:00:09]} Nf6 {[%emt 0:00:11]} 3. e5 {[%emt 0:00:04]} Nd5 {[%emt 0:00:03]} 4. d4 {[%emt 0:00:05]} cxd4 {[%emt 0:00:03]} 5. cxd4 {[%emt 0:00:04]} d6 {[%emt 0:00:05]} 6. exd6 {[%emt 0:00:04]} e6 {[%emt 0:00:05]} 7. Nc3 {[%emt 0:00:16]} Nxc3 {[%emt 0:00:05]} 8. bxc3 {[%emt 0:00:03]} Bxd6 {[%emt 0:00:05]} 9. Bd3 {[%emt 0:00:20]} Qc7 {[%emt 0:00:19]} 10. Bd2 {[%emt 0:00:44]} Nd7 {[%emt 0:00:55]} 11. Nf3 {[%emt 0:00:11]} Nf6 {[%emt 0:07:52]} 12. O-O {[%emt 0:01:34]} O-O {[%emt 0:05:28]} 13. Re1 {[%emt 0:01:44]} b6 {[%emt 0:04:37]} 14. Ne5 {[%emt 0:03:24]} Bb7 {[%emt 0:03:42]} 15. Rc1 {[%emt 0:04:48]} Rac8 {[%emt 0:04:43]} 16. f4 {[%emt 0:07:50]} g6 {[%emt 0:16:49]} 17. Qb3 {[%emt 0:06:54]} a6 {[%emt 0:13:18]} 18. c4 {[%emt 0:03:47]} Rfd8 {[%emt 0:04:43]} 19. Bc3 {[%emt 0:01:48]} Bf8 {[%emt 0:02:07]} 20. a4 {[%emt 0:01:39]} Nh5 {[%emt 0:07:51]} 21. Rf1 {[%emt 0:09:48]} f6 {[%emt 0:04:02]} 22. Ng4 {[%emt 0:03:18]} Nxf4 {[%emt 0:03:03]} 23. Nxf6+ {[%emt 0:01:42]} Kh8 {[%emt 0:00:12]} 24. d5 {[%emt 0:01:24]} Bg7 {[%emt 0:00:36]} 25. Bd4 {[%emt 0:02:18]} Rf8 {[%emt 0:03:56]} 26. Bxb6 {[%emt 0:04:03]} Qe5 {[%emt 0:01:25]} 27. Nd7 {[%emt 0:06:15]} Qg5 {[%emt 0:00:16]} 28. Rc2 {[%emt 0:01:42]} Rf7 {[%emt 0:04:16]} 29. dxe6 {[%emt 0:12:26]} Bxg2 {[%emt 0:00:32]} 30. Rxf4 {[%emt 0:00:49]} Bc6+ {[%emt 0:00:36]} 31. Kf1 {[%emt 0:00:52]} Rxf4+ {[%emt 0:00:01]} 32. Ke1 {[%emt 0:00:12]} Re8 {[%emt 0:00:42]} 33. Re2 {[%emt 0:00:47]} Rf3 {[%emt 0:00:57]} 34. Qc2 {[%emt 0:01:20]} Bxa4 {[%emt 0:00:35]} 35. Qxa4 {[%emt 0:00:31]} Qc1+ {[%emt 0:00:03]} 36. Qd1 {[%emt 0:00:11]} Bc3+ {[%emt 0:00:10]} 37. Rd2 {[%emt 0:00:11]} Rxe6+ {[%emt 0:00:01]} 38. Be2 {[%emt 0:00:13]} Bxd2# {[%emt 0:00:07]} 0-1

[Event "36th Indian-ch U13 Open 2023"]
[Site "Secunderabad"]
[Date "2023.12.08"]
[Round "9.8"]
[White "Reyan"]
[Black "Saisarvesh S"]
[Result "1-0"]
[ECO "B23"]
[WhiteElo "1842"]
[BlackElo "1594"]
[Annotator "NA COMBH"]
[PlyCount "99"]
[EventDate "2023.12.04"]
[EventType "swiss"]
[EventCountry "IND"]
[SourceTitle "playchess.com"]
[Source "ChessBase"]
[SourceQuality "1"]
[TimeControl "5400+30"]

1. e4 {[%emt 0:00:02]} c5 {[%emt 0:00:16]} 2. Nc3 {[%emt 0:00:05]} d6 {[%emt 0:00:05]} 3. d4 {[%emt 0:00:10]} cxd4 {[%emt 0:00:07]} 4. Qxd4 {[%emt 0:00:02]} Nc6 {[%emt 0:00:11]} 5. Qd2 {[%emt 0:00:06]} g6 {[%emt 0:00:08]} 6. b3 {[%emt 0:00:04]} Bg7 {[%emt 0:00:05]} 7. Bb2 {[%emt 0:00:10]} Nf6 {[%emt 0:00:05]} 8. O-O-O {[%emt 0:00:40]} O-O {[%emt 0:00:18]} 9. f3 {[%emt 0:00:10]} a6 {[%emt 0:04:57]} 10. Kb1 {[%emt 0:01:05]} Qa5 {[%emt 0:02:38]} 11. h4 {[%emt 0:00:37]} Be6 {[%emt 0:01:25]} 12. Nge2 {[%emt 0:01:42]} Rfd8 {[%emt 0:02:17]} 13. Nf4 {[%emt 0:03:46]} d5 {[%emt 0:09:18]} 14. Ncxd5 {[%emt 0:02:59]} Nxd5 {[%emt 0:02:02]} 15. Nxd5 {[%emt 0:04:23]} Qxd2 {[%emt 0:09:49]} 16. Rxd2 {[%emt 0:00:07]} Bxd5 {[%emt 0:00:41]} 17. Rxd5 {[%emt 0:01:29]} Nb4 {[%emt 0:00:37]} 18. Rxd8+ {[%emt 0:22:53]} Rxd8 {[%emt 0:00:07]} 19. Bxg7 {[%emt 0:59:30]} Rd1+ {[%emt 0:00:03]} 20. Kb2 {[%emt 0:00:00]} Kxg7 {[%emt 0:00:04]} 21. g3 {[%emt 0:00:00]} Re1 {[%emt 0:08:34]} 22. Kc3 {[%emt 0:00:00]} Nxa2+ {[%emt 0:03:25]} 23. Kd2 {[%emt 0:00:00]} Rb1 {[%emt 0:00:12]} 24. Bg2 {[%emt 0:00:00]} Rxh1 {[%emt 0:00:07]} 25. Bxh1 {[%emt 0:00:00]} Nb4 {[%emt 0:00:06]} 26. f4 {[%emt 0:00:00]} e5 {[%emt 0:01:23]} 27. Kc3 {[%emt 0:00:00]} a5 {[%emt 0:00:02]} 28. fxe5 {[%emt 0:00:00]} Nc6 {[%emt 0:05:27]} 29. Kc4 {[%emt 0:00:00]} Nxe5+ {[%emt 0:01:13]} 30. Kb5 {[%emt 0:00:00]} Nc6 {[%emt 0:02:02]} 31. c3 {[%emt 0:00:00]} Kf6 {[%emt 0:00:28]} 32. Kb6 {[%emt 0:00:00]} Ne5 {[%emt 0:02:35]} 33. Kxb7 {[%emt 0:00:00]} Nc4 {[%emt 0:00:46]} 34. Ka6 {[%emt 0:00:00]} Nd2 {[%emt 0:00:04]} 35. Kxa5 {[%emt 0:00:00]} Nxb3+ {[%emt 0:00:04]} 36. Kb4 {[%emt 0:00:00]} Nc1 {[%emt 0:01:40]} 37. c4 {[%emt 0:00:00]} Ke5 {[%emt 0:06:26]} 38. c5 {[%emt 0:00:00]} Nd3+ {[%emt 0:00:06]} 39. Kb5 {[%emt 0:00:00]} Nxc5 {[%emt 0:00:11]} 40. Kxc5 {[%emt 0:00:00]} f5 {[%emt 0:00:02]} 41. exf5 {[%emt 0:00:00]} g5 {[%emt 0:08:22]} 42. hxg5 {[%emt 0:00:00]} Kxf5 {[%emt 0:00:06]} 43. Bf3 {[%emt 0:00:00]} Kxg5 {[%emt 0:00:10]} 44. Kd4 {[%emt 0:00:00]} Kf5 {[%emt 0:00:53]} 45. Ke3 {[%emt 0:00:00]} Kg5 {[%emt 0:00:07]} 46. Kf2 {[%emt 0:00:00]} Kf5 {[%emt 0:00:19]} 47. Kg2 {[%emt 0:00:00]} Kg5 {[%emt 0:00:11]} 48. Kh3 {[%emt 0:00:00]} h5 {[%emt 0:00:15]} 49. Bd1 {[%emt 0:00:00]} h4 {[%emt 0:00:04]} 50. g4 {[%emt 0:00:00]} 1-0

[Event "36th Indian-ch U13 Open 2023"]
[Site "Secunderabad"]
[Date "2023.12.08"]
[Round "9.10"]
[White "Madhvendra Pratap Sharma"]
[Black "Pavan Karthikeya Varma Gunturi"]
[Result "1/2-1/2"]
[ECO "C54"]
[WhiteElo "1803"]
[BlackElo "1538"]
[Annotator "NA COMBH"]
[PlyCount "64"]
[EventDate "2023.12.04"]
[EventType "swiss"]
[EventCountry "IND"]
[SourceTitle "playchess.com"]
[Source "ChessBase"]
[SourceQuality "1"]
[TimeControl "5400+30"]

1. e4 {[%emt 0:00:34]} e5 {[%emt 0:00:25]} 2. Nf3 {[%emt 0:00:08]} Nc6 {[%emt 0:01:19]} 3. Bc4 {[%emt 0:00:13]} Nf6 {[%emt 0:00:17]} 4. d3 {[%emt 0:00:36]} Bc5 {[%emt 0:00:19]} 5. c3 {[%emt 0:00:20]} a6 {[%emt 0:02:55]} 6. O-O {[%emt 0:00:27]} Ba7 {[%emt 0:00:06]} 7. a4 {[%emt 0:01:01]} d6 {[%emt 0:02:34]} 8. Nbd2 {[%emt 0:01:41]} O-O {[%emt 0:02:17]} 9. Bb3 {[%emt 0:01:00]} h6 {[%emt 0:03:05]} 10. h3 {[%emt 0:01:31]} Re8 {[%emt 0:01:52]} 11. Re1 {[%emt 0:01:16]} Be6 {[%emt 0:03:45]} 12. Bc2 {[%emt 0:01:36]} Ne7 {[%emt 0:01:15]} 13. Nf1 {[%emt 0:03:25]} Ng6 {[%emt 0:05:36]} 14. Ng3 {[%emt 0:00:12]} d5 {[%emt 0:01:50]} 15. Be3 {[%emt 0:00:57]} Bxe3 {[%emt 0:04:28]} 16. Rxe3 {[%emt 0:00:20]} c5 {[%emt 0:06:03]} 17. d4 {[%emt 0:03:22]} cxd4 {[%emt 0:02:23]} 18. cxd4 {[%emt 0:00:17]} exd4 {[%emt 0:01:33]} 19. Nxd4 {[%emt 0:14:50]} dxe4 {[%emt 0:02:35]} 20. Nxe6 {[%emt 0:08:11]} Rxe6 {[%emt 0:02:52]} 21. Nxe4 {[%emt 0:00:56]} Rc8 {[%emt 0:18:31]} 22. Qxd8+ {[%emt 0:04:52]} Rxd8 {[%emt 0:00:23]} 23. Nxf6+ {[%emt 0:02:57]} Rxf6 {[%emt 0:00:11]} 24. Rd1 {[%emt 0:00:30]} Rxd1+ {[%emt 0:04:51]} 25. Bxd1 {[%emt 0:00:01]} Kf8 {[%emt 0:02:33]} 26. Rb3 {[%emt 0:06:38]} b6 {[%emt 0:01:34]} 27. Be2 {[%emt 0:00:37]} a5 {[%emt 0:01:44]} 28. Re3 {[%emt 0:02:13]} Re6 {[%emt 0:00:26]} 29. Rxe6 {[%emt 0:00:06]} fxe6 {[%emt 0:27:18]} 30. Kh2 {[%emt 0:01:59]} Ke7 {[%emt 0:00:00]} 31. Kg3 {[%emt 0:01:16]} Kf6 {[%emt 0:00:00]} 32. f3 {[%emt 0:05:52]} Ne7 {[%emt 0:00:00]} 1/2-1/2

[Event "36th Indian-ch U13 Open 2023"]
[Site "Secunderabad"]
[Date "2023.12.09"]
[Round "10.1"]
[White "Sharnarthi Viresh"]
[Black "Venkat, Raghav"]
[Result "0-1"]
[ECO "E19"]
[WhiteElo "1850"]
[BlackElo "2205"]
[Annotator "RC"]
[PlyCount "170"]
[EventDate "2023.12.04"]
[EventType "swiss"]
[EventCountry "IND"]
[SourceTitle "playchess.com"]
[Source "ChessBase"]
[SourceQuality "1"]
[TimeControl "5400+30"]

1. d4 {[%emt 0:00:01]} Nf6 {[%emt 0:00:04]} 2. Nf3 {[%emt 0:00:05]} e6 {[%emt 0:00:05]} 3. g3 {[%emt 0:00:09]} b6 {[%emt 0:00:10]} 4. Bg2 {[%emt 0:00:06]} Bb7 {[%emt 0:00:05]} 5. O-O {[%emt 0:00:11]} Be7 {[%emt 0:00:51]} 6. c4 {[%emt 0:00:07]} O-O {[%emt 0:00:09]} 7. Nc3 Ne4 {[%emt 0:01:25]} 8. Qc2 {[%emt 0:03:33]} Nxc3 {[%emt 0:00:05]} 9. Qxc3 {[%emt 0:00:47]} d6 {[%emt 0:00:06]} 10. Qc2 {[%emt 0:19:54]} f5 {[%emt 0:00:13]} 11. d5 {[%emt 0:01:03]} e5 {[%emt 0:00:08]} 12. Bd2 {[%emt 0:10:58]} a5 {[%emt 0:04:38]} 13. Bc3 {[%emt 0:15:47]} Nd7 {[%emt 0:29:57]} 14. Bh3 {[%emt 0:02:32]} g6 {[%emt 0:03:04]} 15. e4 {[%emt 0:05:39]} Nc5 {[%emt 0:19:02]} 16. exf5 {[%emt 0:03:16]} Bc8 {[%emt 0:04:26]} 17. g4 {[%emt 0:01:56]} h5 {[%emt 0:05:56]} 18. Kh1 {[%emt 0:04:25]} hxg4 {[%emt 0:02:05]} 19. Bxg4 {[%emt 0:00:02]} Bxf5 {[%emt 0:03:12]} 20. Bxf5 {[%emt 0:00:08]} Rxf5 {[%emt 0:00:05]} 21. Rg1 {[%emt 0:00:09]} Kf7 {[%emt 0:00:11]} 22. Rae1 {[%emt 0:19:05]} Bf6 {[%emt 0:03:15]} 23. Rg3 {[%emt 0:01:44]} Qh8 {[%emt 0:00:55]} 24. Nd2 {[%emt 0:08:19]} Bg5 {[%emt 0:04:28]} 25. Ne4 {[%emt 0:00:54]} Nxe4 {[%emt 0:01:50]} 26. Rxe4 {[%emt 0:00:05]} Qh5 {[%emt 0:02:31]} 27. Qe2 {[%emt 0:00:21]} Bf4 {[%emt 0:01:04]} 28. Rg2 {[%emt 0:01:18]} Rh8 {[%emt 0:00:16]} 29. f3 {[%emt 0:00:48]} Qh6 {[%emt 0:00:51]} 30. Qf2 {[%emt 0:01:04]} Rh5 {[%emt 0:00:34]} 31. Re2 {[%emt 0:00:01]} Bxh2 {[%emt 0:01:17]} 32. Rxh2 {[%emt 0:00:43]} Rxh2+ {[%emt 0:00:26]} 33. Qxh2 {[%emt 0:00:57]} Qc1+ {[%emt 0:00:21]} 34. Re1 {[%emt 0:00:21]} Rxh2+ {[%emt 0:00:06]} 35. Kxh2 {[%emt 0:00:02]} Qf4+ {[%emt 0:00:17]} 36. Kg2 {[%emt 0:00:03]} Qxc4 {[%emt 0:00:27]} 37. Rh1 {[%emt 0:00:16]} Kg7 {[%emt 0:00:21]} 38. Re1 {[%emt 0:01:25]} Qxd5 {[%emt 0:00:51]} 39. Kf2 {[%emt 0:00:18]} b5 {[%emt 0:00:16]} 40. b3 {[%emt 0:00:46]} b4 {[%emt 0:00:22]} 41. Bb2 {[%emt 0:00:03]} Kf7 {[%emt 0:00:36]} 42. Re4 {[%emt 0:00:41]} Qd2+ {[%emt 0:00:18]} 43. Re2 {[%emt 0:00:05]} Qd1 {[%emt 0:00:08]} 44. Re1 {[%emt 0:00:14]} Qc2+ {[%emt 0:00:12]} 45. Re2 {[%emt 0:00:10]} Qb1 {[%emt 0:00:09]} 46. a3 {[%emt 0:00:53]} bxa3 {[%emt 0:00:10]} 47. Bxa3 {[%emt 0:00:08]} Qxb3 {[%emt 0:00:07]} 48. Re3 {[%emt 0:00:05]} Qa2+ {[%emt 0:00:10]} 49. Kg3 {[%emt 0:00:13]} Qd2 {[%emt 0:01:02]} 50. Rb3 {[%emt 0:00:47]} Qd5 {[%emt 0:01:26]} 51. Rc3 {[%emt 0:00:35]} c5 {[%emt 0:02:51]} 52. Re3 {[%emt 0:01:06]} a4 {[%emt 0:00:29]} 53. f4 {[%emt 0:00:07]} Qd4 {[%emt 0:00:13]} 54. Kf3 {[%emt 0:00:36]} Qxf4+ {[%emt 0:00:27]} 55. Ke2 {[%emt 0:00:03]} Ke6 {[%emt 0:00:16]} 56. Rf3 {[%emt 0:00:05]} Qg4 {[%emt 0:00:51]} 57. Kf2 {[%emt 0:00:07]} e4 {[%emt 0:00:50]} 58. Rc3 {[%emt 0:00:13]} Qf4+ {[%emt 0:00:34]} 59. Ke2 {[%emt 0:00:07]} g5 {[%emt 0:00:36]} 60. Bc1 {[%emt 0:00:09]} Qh2+ {[%emt 0:00:12]} 61. Kd1 {[%emt 0:00:03]} g4 {[%emt 0:00:14]} 62. Rc4 {[%emt 0:00:02]} Qh1+ {[%emt 0:00:41]} 63. Kc2 {[%emt 0:00:25]} g3 {[%emt 0:00:25]} 64. Rxa4 {[%emt 0:00:21]} g2 {[%emt 0:00:18]} 65. Be3 {[%emt 0:00:12]} g1=Q {[%emt 0:00:15]} 66. Bxg1 {[%emt 0:00:05]} Qxg1 {[%emt 0:00:05]} 67. Rxe4+ {[%emt 0:00:05]} Kd5 {[%emt 0:00:05]} 68. Re2 {[%emt 0:00:04]} Kc4 {[%emt 0:00:20]} 69. Re4+ {[%emt 0:00:05]} Qd4 {[%emt 0:00:12]} 70. Rxd4+ {[%emt 0:00:08]} Kxd4 {[%emt 0:00:04]} 71. Kd2 {[%emt 0:00:06]} c4 {[%emt 0:00:03]} 72. Kc2 {[%emt 0:00:08]} Ke3 {[%emt 0:00:08]} 73. Kc3 {[%emt 0:00:08]} d5 {[%emt 0:00:05]} 74. Kc2 {[%emt 0:00:24]} d4 {[%emt 0:00:07]} 75. Kd1 {[%emt 0:00:03]} d3 {[%emt 0:00:04]} 76. Ke1 {[%emt 0:00:05]} c3 {[%emt 0:00:15]} 77. Kd1 {[%emt 0:00:06]} Kf2 {[%emt 0:00:35]} 78. Kc1 {[%emt 0:00:25]} Ke2 {[%emt 0:00:02]} 79. Kb1 {[%emt 0:00:34]} Kd2 {[%emt 0:00:15]} 80. Ka2 {[%emt 0:00:05]} c2 {[%emt 0:00:03]} 81. Kb3 {[%emt 0:00:02]} c1=Q {[%emt 0:00:08]} 82. Kb4 {[%emt 0:00:03]} Qc6 {[%emt 0:00:09]} 83. Kb3 {[%emt 0:00:02]} Qb5+ {[%emt 0:00:07]} 84. Ka3 {[%emt 0:00:02]} Kc3 {[%emt 0:00:20]} 85. Ka2 {[%emt 0:00:02]} Qb2# {[%emt 0:00:05]} 0-1

[Event "36th Indian-ch U13 Open 2023"]
[Site "Secunderabad"]
[Date "2023.12.09"]
[Round "10.2"]
[White "Siddhanth Poonja"]
[Black "Sriram Adarsh Uppala"]
[Result "0-1"]
[ECO "D00"]
[WhiteElo "1806"]
[BlackElo "1902"]
[Annotator "RC"]
[PlyCount "139"]
[EventDate "2023.12.04"]
[EventType "swiss"]
[EventCountry "IND"]
[SourceTitle "playchess.com"]
[Source "ChessBase"]
[SourceQuality "1"]
[TimeControl "5400+30"]

1. d4 {[%emt 0:00:37]} Nf6 {[%emt 0:01:18]} 2. Nc3 {[%emt 0:00:09]} d5 {[%emt 0:00:35]} 3. Bf4 {[%emt 0:00:09]} e6 {[%emt 0:00:06]} 4. Nb5 {[%emt 0:00:09]} Bb4+ {[%emt 0:00:06]} 5. c3 {[%emt 0:00:04]} Ba5 {[%emt 0:00:03]} 6. e3 {[%emt 0:05:23]} a6 {[%emt 0:00:05]} 7. Na3 {[%emt 0:00:04]} Qe7 {[%emt 0:00:03]} 8. Nc2 {[%emt 0:05:07]} O-O {[%emt 0:00:10]} 9. Nf3 {[%emt 0:03:57]} c5 {[%emt 0:01:17]} 10. Be2 {[%emt 0:03:48]} Bc7 {[%emt 0:01:43]} 11. O-O {[%emt 0:07:05]} Ne4 {[%emt 0:03:01]} 12. Be5 {[%emt 1:09:58]} Bd6 13. Bxd6 {[%emt 0:00:00]} Qd7 {[%emt 1:28:33]} 14. Bc7 Qxc7 {[%emt 0:00:00]} 15. Bd3 {[%emt 0:00:00]} Nf6 {[%emt 0:00:00]} 16. Ne5 {[%emt 0:00:00]} c4 {[%emt 0:00:00]} 17. Be2 {[%emt 0:02:30]} Ne4 {[%emt 0:00:00]} 18. f3 {[%emt 0:00:00]} Nd6 {[%emt 0:00:00]} 19. Re1 {[%emt 0:00:00]} Nd7 {[%emt 0:00:00]} 20. Ng4 {[%emt 0:00:00]} b5 {[%emt 0:00:00]} 21. Bf1 {[%emt 0:00:00]} Bb7 {[%emt 0:00:00]} 22. g3 {[%emt 0:00:00]} Rfe8 {[%emt 0:00:00]} 23. Bg2 {[%emt 0:00:00]} a5 {[%emt 0:00:00]} 24. e4 {[%emt 0:00:00]} dxe4 {[%emt 0:00:00]} 25. fxe4 {[%emt 0:00:00]} e5 {[%emt 0:00:00]} 26. Qd2 {[%emt 0:00:00]} f6 {[%emt 0:00:00]} 27. Rad1 {[%emt 0:00:00]} Rad8 {[%emt 0:07:00]} 28. Nf2 {[%emt 0:00:00]} Nf8 {[%emt 0:00:00]} 29. Qc1 {[%emt 0:00:00]} Nf7 {[%emt 0:00:00]} 30. Ne3 {[%emt 0:00:00]} Ne6 {[%emt 0:00:00]} 31. d5 {[%emt 0:00:00]} Nc5 {[%emt 0:00:00]} 32. h4 {[%emt 0:00:00]} Bc8 {[%emt 0:00:00]} 33. Qc2 {[%emt 0:00:00]} Nd6 {[%emt 0:00:00]} 34. b4 {[%emt 0:00:00]} axb4 {[%emt 0:00:00]} 35. cxb4 {[%emt 0:00:00]} Na4 {[%emt 0:00:00]} 36. Bf1 {[%emt 0:00:00]} Bd7 {[%emt 0:00:00]} 37. g4 {[%emt 0:00:00]} Ra8 {[%emt 0:00:00]} 38. Be2 {[%emt 0:00:00]} Nb6 {[%emt 0:00:00]} 39. Qb2 {[%emt 0:00:00]} Qa7 {[%emt 0:00:00]} 40. Ra1 {[%emt 0:00:45]} Rec8 {[%emt 0:00:00]} 41. a3 {[%emt 0:01:59]} Rc7 {[%emt 0:00:00]} 42. Bd1 {[%emt 0:03:03]} Nbc8 {[%emt 0:00:00]} 43. Bf3 {[%emt 0:04:01]} Ne7 {[%emt 0:00:00]} 44. h5 {[%emt 0:00:37]} Qd4 {[%emt 0:00:00]} 45. Qc2 {[%emt 0:01:15]} Rca7 {[%emt 0:00:00]} 46. Qe2 {[%emt 0:00:34]} Nec8 {[%emt 0:00:00]} 47. Nc2 {[%emt 0:00:28]} Qb6 {[%emt 0:00:00]} 48. Qe3 {[%emt 0:00:47]} Qd8 {[%emt 0:00:00]} 49. h6 {[%emt 0:00:54]} g5 {[%emt 0:00:00]} 50. Kg2 {[%emt 0:00:17]} Ne7 {[%emt 0:00:00]} 51. Qc3 {[%emt 0:01:12]} Ng6 {[%emt 0:00:00]} 52. Kg3 {[%emt 0:00:57]} Nf4 {[%emt 0:00:00]} 53. Nh3 {[%emt 0:00:24]} Nf7 {[%emt 0:00:00]} 54. Rh1 {[%emt 0:00:45]} Kh8 {[%emt 0:00:00]} 55. Ne3 {[%emt 0:00:29]} Nd6 {[%emt 0:00:00]} 56. Kf2 {[%emt 0:00:30]} Qb6 {[%emt 0:00:00]} 57. Ke1 {[%emt 0:00:31]} Nd3+ {[%emt 0:00:00]} 58. Kd2 {[%emt 0:00:24]} Qd4 {[%emt 0:00:00]} 59. Qxd4 {[%emt 0:00:36]} exd4 {[%emt 0:00:00]} 60. Nc2 {[%emt 0:00:02]} Ne5 {[%emt 0:00:00]} 61. Nxd4 {[%emt 0:00:29]} Rxa3 {[%emt 0:00:00]} 62. Rxa3 {[%emt 0:00:15]} Rxa3 {[%emt 0:00:00]} 63. Be2 {[%emt 0:00:13]} Nxe4+ {[%emt 0:00:00]} 64. Kc2 {[%emt 0:00:21]} Ra2+ {[%emt 0:00:00]} 65. Kb1 {[%emt 0:00:29]} Nc3+ {[%emt 0:00:00]} 66. Kc1 {[%emt 0:00:06]} Ra1+ {[%emt 0:00:00]} 67. Kd2 {[%emt 0:00:07]} Rxh1 {[%emt 0:00:00]} 68. Nf2 {[%emt 0:00:06]} Rh2 {[%emt 0:00:00]} 69. Ke3 {[%emt 0:00:09]} Nxd5+ {[%emt 0:00:00]} 70. Kd2 {[%emt 0:00:00]} 0-1

[Event "36th Indian-ch U13 Open 2023"]
[Site "Secunderabad"]
[Date "2023.12.09"]
[Round "10.3"]
[White "Vivaan Vijay Saraogi"]
[Black "Challa Saharsha"]
[Result "1-0"]
[ECO "B33"]
[WhiteElo "1982"]
[BlackElo "1674"]
[Annotator "RC"]
[PlyCount "73"]
[EventDate "2023.12.04"]
[EventType "swiss"]
[EventCountry "IND"]
[SourceTitle "playchess.com"]
[Source "ChessBase"]
[SourceQuality "1"]
[TimeControl "5400+30"]

1. e4 {[%emt 0:00:05]} c5 {[%emt 0:00:21]} 2. Nf3 {[%emt 0:00:10]} Nc6 {[%emt 0:00:04]} 3. d4 {[%emt 0:00:08]} cxd4 {[%emt 0:00:05]} 4. Nxd4 {[%emt 0:00:04]} Nf6 {[%emt 0:00:06]} 5. Nc3 {[%emt 0:00:07]} h5 {[%emt 0:00:03]} 6. f3 {[%emt 0:09:27]} e5 {[%emt 0:00:05]} 7. Ndb5 {[%emt 0:04:49]} d6 {[%emt 0:01:12]} 8. Bg5 {[%emt 0:03:21]} a6 {[%emt 0:01:02]} 9. Na3 {[%emt 0:01:42]} Be6 {[%emt 0:05:42]} 10. Nc4 {[%emt 0:02:10]} Rc8 {[%emt 0:03:48]} 11. Bd3 {[%emt 0:24:00]} Nd4 {[%emt 0:06:14]} 12. Ne3 {[%emt 0:00:36]} Be7 {[%emt 0:01:00]} 13. Bxf6 {[%emt 0:01:33]} gxf6 {[%emt 0:01:48]} 14. Ncd5 {[%emt 0:02:03]} f5 {[%emt 0:13:02]} 15. Nxe7 {[%emt 0:03:36]} fxe4 {[%emt 0:00:43]} 16. Nxc8 {[%emt 0:01:46]} exd3 {[%emt 0:02:24]} 17. Qxd3 {[%emt 0:01:24]} Bxc8 {[%emt 0:05:49]} 18. O-O {[%emt 0:06:24]} Qb6 {[%emt 0:02:13]} 19. Kh1 {[%emt 0:00:19]} h4 {[%emt 0:02:16]} 20. c3 {[%emt 0:01:07]} Ne6 {[%emt 0:52:33]} 21. Nc4 {[%emt 0:00:28]} Qc7 {[%emt 0:00:00]} 22. Nxd6+ {[%emt 0:00:21]} Ke7 {[%emt 0:00:00]} 23. Nf5+ {[%emt 0:06:10]} Kf6 {[%emt 0:00:00]} 24. Ne3 {[%emt 0:02:37]} Kg7 {[%emt 0:00:00]} 25. Rae1 {[%emt 0:02:38]} Nf4 {[%emt 0:00:00]} 26. Qe4 {[%emt 0:00:34]} Nh5 {[%emt 0:00:00]} 27. Qxh4 {[%emt 0:00:41]} e4 {[%emt 0:00:00]} 28. Qg5+ {[%emt 0:01:24]} Kf8 {[%emt 0:00:00]} 29. f4 {[%emt 0:00:16]} f6 {[%emt 0:00:00]} 30. Qg6 {[%emt 0:01:00]} Be6 {[%emt 0:00:00]} 31. Kg1 {[%emt 0:01:49]} Qc6 {[%emt 0:00:00]} 32. Rd1 {[%emt 0:02:52]} Bf7 {[%emt 0:00:00]} 33. Qf5 {[%emt 0:00:16]} Ng7 {[%emt 0:00:00]} 34. Qd7 {[%emt 0:01:14]} Qb6 {[%emt 0:00:00]} 35. Qd8+ {[%emt 0:00:50]} Qxd8 {[%emt 0:00:00]} 36. Rxd8+ {[%emt 0:00:01]} Be8 {[%emt 0:00:00]} 37. Rb8 {[%emt 0:00:32]} 1-0

[Event "36th Indian-ch U13 Open 2023"]
[Site "Secunderabad"]
[Date "2023.12.09"]
[Round "10.4"]
[White "Gaikwad Manas"]
[Black "Sushanth Vaman Shetty"]
[Result "0-1"]
[ECO "C11"]
[WhiteElo "1916"]
[BlackElo "1620"]
[Annotator "RC"]
[PlyCount "58"]
[EventDate "2023.12.04"]
[EventType "swiss"]
[EventCountry "IND"]
[SourceTitle "playchess.com"]
[Source "ChessBase"]
[SourceQuality "1"]
[TimeControl "5400+30"]

1. e4 {[%emt 0:00:15]} e6 {[%emt 0:02:46]} 2. d4 {[%emt 0:00:07]} d5 {[%emt 0:00:13]} 3. Nc3 {[%emt 0:00:09]} Nf6 {[%emt 0:00:05]} 4. e5 {[%emt 0:00:04]} Nfd7 {[%emt 0:00:04]} 5. Nce2 {[%emt 0:00:05]} c5 {[%emt 0:00:27]} 6. c3 {[%emt 0:00:04]} Nc6 {[%emt 0:00:05]} 7. f4 {[%emt 0:00:08]} b5 {[%emt 1:30:20]} 8. Nf3 {[%emt 0:00:45]} a5 {[%emt 0:00:00]} 9. Ng3 {[%emt 0:04:21]} c4 {[%emt 0:00:00]} 10. Be2 {[%emt 0:02:15]} f5 {[%emt 0:00:00]} 11. exf6 {[%emt 0:07:25]} Nxf6 {[%emt 0:00:00]} 12. Ne5 {[%emt 0:01:53]} Qc7 {[%emt 0:00:00]} 13. Bh5+ {[%emt 0:06:43]} g6 {[%emt 0:00:00]} 14. Bf3 {[%emt 0:00:05]} Bb7 {[%emt 0:00:00]} 15. h4 {[%emt 0:02:36]} O-O-O {[%emt 0:00:00]} 16. h5 {[%emt 0:27:37]} Bd6 {[%emt 0:00:00]} 17. Bg4 {[%emt 0:03:16]} Nxe5 {[%emt 0:00:00]} 18. dxe5 {[%emt 0:21:16]} Bxe5 {[%emt 0:00:00]} 19. Bxe6+ {[%emt 0:01:05]} Kb8 {[%emt 0:00:00]} 20. O-O {[%emt 0:00:48]} Bd6 {[%emt 0:00:00]} 21. Bh3 {[%emt 0:08:45]} Bc5+ {[%emt 0:00:00]} 22. Kh2 {[%emt 0:01:18]} Ne4 {[%emt 0:00:00]} 23. Qf3 {[%emt 0:05:41]} gxh5 {[%emt 0:00:00]} 24. Nxe4 {[%emt 0:03:39]} dxe4 {[%emt 0:00:00]} 25. Qxh5 {[%emt 0:00:04]} e3 {[%emt 0:00:00]} 26. Bxe3 {[%emt 0:02:18]} Bxe3 {[%emt 0:00:00]} 27. Qxb5 {[%emt 0:00:06]} Bxf4+ {[%emt 0:00:00]} 28. Kh1 {[%emt 0:00:13]} Rd5 {[%emt 0:00:00]} 29. Qa4 {[%emt 0:00:04]} Rh5 {[%emt 0:00:00]} 0-1